[Event "Titled Tuesday Blitz May 31 Late 2022"]
[White "Hansen, Eric"]
[Black "Moroni, Luca Jr"]
[WhiteFideId "2606771"]
[BlackFideId "865834"]
[WhiteElo "2568"]
[BlackElo "2573"]
[Result "1-0"]
[Round "07"]
[TimeControl "180+1"]
[Date "2022.05.31"]
[WhiteClock "0:00:06"]
[BlackClock "0:00:02"]

1. d4 {[%clk 0:03:00]}  d6 {[%clk 0:02:59]} 2. e4 {[%clk 0:03:00]}  e5 {[%clk 0:02:59]} 3. Nf3 {[%clk 0:02:59]}  exd4 {[%clk 0:02:59]} 4. Nxd4 {[%clk 0:02:59]}  Nf6 {[%clk 0:03:00]} 5. Nc3 {[%clk 0:02:59]}  Be7 {[%clk 0:03:00]} 6. g3 {[%clk 0:02:59]}  O-O {[%clk 0:03:00]} 7. Bg2 {[%clk 0:03:00]}  Re8 {[%clk 0:03:00]} 8. O-O {[%clk 0:03:00]}  c6 {[%clk 0:02:59]} 9. Re1 {[%clk 0:02:56]}  Bf8 {[%clk 0:02:57]} 10. Bf4 {[%clk 0:02:54]}  a5 {[%clk 0:02:55]} 11. Qd2 {[%clk 0:02:42]}  a4 {[%clk 0:02:54]} 12. Rad1 {[%clk 0:02:41]}  Qa5 {[%clk 0:02:52]} 13. a3 {[%clk 0:02:37]}  Qb6 {[%clk 0:02:40]} 14. Qc1 {[%clk 0:02:26]}  h6 {[%clk 0:02:32]} 15. h3 {[%clk 0:02:23]}  Na6 {[%clk 0:02:30]} 16. e5 {[%clk 0:02:20]}  dxe5 {[%clk 0:02:28]} 17. Rxe5 {[%clk 0:01:46]}  Rxe5 {[%clk 0:02:26]} 18. Bxe5 {[%clk 0:01:46]}  Nd7 {[%clk 0:02:25]} 19. Bf4 {[%clk 0:01:43]}  Nf6 {[%clk 0:02:25]} 20. Nxa4 {[%clk 0:01:41]}  Qa5 {[%clk 0:02:19]} 21. Nc3 {[%clk 0:01:39]}  Nc7 {[%clk 0:02:02]} 22. Nb3 {[%clk 0:01:31]}  Qb6 {[%clk 0:02:02]} 23. Be3 {[%clk 0:01:25]}  Qa6 {[%clk 0:02:02]} 24. Nc5 {[%clk 0:01:22]}  Qa5 {[%clk 0:02:00]} 25. Nb3 {[%clk 0:01:22]}  Qa6 {[%clk 0:02:00]} 26. Bd4 {[%clk 0:01:16]}  Be7 {[%clk 0:01:52]} 27. Re1 {[%clk 0:01:15]}  Ne6 {[%clk 0:01:51]} 28. Be3 {[%clk 0:01:09]}  Bd7 {[%clk 0:01:50]} 29. Rd1 {[%clk 0:01:09]}  Re8 {[%clk 0:01:33]} 30. Ne4 {[%clk 0:01:07]}  Nxe4 {[%clk 0:01:28]} 31. Rxd7 {[%clk 0:01:04]}  Nf6 {[%clk 0:01:18]} 32. Rd1 {[%clk 0:01:03]}  Qb5 {[%clk 0:01:13]} 33. Nd4 {[%clk 0:00:57]}  Nxd4 {[%clk 0:01:11]} 34. Bxd4 {[%clk 0:00:58]}  Qf5 {[%clk 0:01:01]} 35. b4 {[%clk 0:00:55]}  Bd8 {[%clk 0:00:53]} 36. c4 {[%clk 0:00:54]}  Bc7 {[%clk 0:00:51]} 37. Qc3 {[%clk 0:00:51]}  Be5 {[%clk 0:00:46]} 38. Bxe5 {[%clk 0:00:51]}  Rxe5 {[%clk 0:00:47]} 39. Rd8+ {[%clk 0:00:43]}  Kh7 {[%clk 0:00:47]} 40. Qd3 {[%clk 0:00:25]}  Re1+ {[%clk 0:00:32]} 41. Kh2 {[%clk 0:00:20]}  Ne4 {[%clk 0:00:31]} 42. Qf3 {[%clk 0:00:07]}  Qe6 {[%clk 0:00:25]} 43. Rd4 {[%clk 0:00:05]}  f5 {[%clk 0:00:21]} 44. h4 {[%clk 0:00:05]}  Ra1 {[%clk 0:00:15]} 45. Bh3 {[%clk 0:00:03]}  g6 {[%clk 0:00:08]} 46. h5 {[%clk 0:00:04]}  Ra2 {[%clk 0:00:08]} 47. hxg6+ {[%clk 0:00:03]}  Kxg6 {[%clk 0:00:09]} 48. Bg2 {[%clk 0:00:01]}  Rxf2 {[%clk 0:00:07]} 49. Qe3 {[%clk 0:00:02]}  Ra2 {[%clk 0:00:04]} 50. c5 {[%clk 0:00:03]}  Qf6 {[%clk 0:00:02]} 51. Kg1 {[%clk 0:00:02]}  h5 {[%clk 0:00:02]} 52. Bxe4 {[%clk 0:00:02]}  Ra1+ {[%clk 0:00:02]} 53. Kh2 {[%clk 0:00:02]}  Ra2+ {[%clk 0:00:02]} 54. Bg2 {[%clk 0:00:02]}  h4 {[%clk 0:00:02]} 55. Rxh4 {[%clk 0:00:02]}  f4 {[%clk 0:00:01]} 56. Qxf4 {[%clk 0:00:03]}  Qb2 {[%clk 0:00:02]} 57. Rh6+ {[%clk 0:00:03]}  Kg7 {[%clk 0:00:02]} 58. Qg5+ {[%clk 0:00:03]}  Kf7 {[%clk 0:00:02]} 59. Qg6+ {[%clk 0:00:04]}  Ke7 {[%clk 0:00:01]} 60. Qe6+ {[%clk 0:00:04]}  Kf8 {[%clk 0:00:02]} 61. Qf6+ {[%clk 0:00:04]}  Qxf6 {[%clk 0:00:01]} 62. Rxf6+ {[%clk 0:00:05]}  Ke7 {[%clk 0:00:02]} 63. Rf3 {[%clk 0:00:06]}  Rxa3 {[%clk 0:00:02]} 64. Rxa3 {[%clk 0:00:06]} 1-0


[Site "https://www.chess.com"]

[Event "Titled Tuesday Blitz May 31 Late 2022"]
[White "Harvey, Marcus R"]
[Black "Melikhov, Evgeny V."]
[WhiteFideId "400092"]
[BlackFideId "4122046"]
[WhiteElo "2485"]
[BlackElo "1931"]
[Result "1-0"]
[Round "07"]
[TimeControl "180+1"]
[Date "2022.05.31"]
[WhiteClock "0:00:18"]
[BlackClock "0:00:04"]

1. d4 {[%clk 0:03:00]}  Nf6 {[%clk 0:02:59]} 2. Bf4 {[%clk 0:03:00]}  d5 {[%clk 0:02:59]} 3. e3 {[%clk 0:02:59]}  c5 {[%clk 0:02:59]} 4. c3 {[%clk 0:02:59]}  Nc6 {[%clk 0:02:59]} 5. Bd3 {[%clk 0:02:59]}  Qb6 {[%clk 0:02:56]} 6. Qc2 {[%clk 0:02:52]}  c4 {[%clk 0:02:46]} 7. Be2 {[%clk 0:02:49]}  Bg4 {[%clk 0:02:44]} 8. Nf3 {[%clk 0:02:46]}  e6 {[%clk 0:02:42]} 9. Nbd2 {[%clk 0:02:40]}  Bf5 {[%clk 0:02:41]} 10. Qc1 {[%clk 0:02:40]}  Qd8 {[%clk 0:02:39]} 11. Nh4 {[%clk 0:02:39]}  Bg6 {[%clk 0:02:38]} 12. Nxg6 {[%clk 0:02:39]}  hxg6 {[%clk 0:02:38]} 13. e4 {[%clk 0:02:39]}  dxe4 {[%clk 0:02:12]} 14. Nxc4 {[%clk 0:02:35]}  Nd5 {[%clk 0:02:12]} 15. Bg5 {[%clk 0:02:34]}  Be7 {[%clk 0:02:11]} 16. Bxe7 {[%clk 0:02:31]}  Qxe7 {[%clk 0:02:10]} 17. a4 {[%clk 0:02:22]}  Rd8 {[%clk 0:01:59]} 18. a5 {[%clk 0:02:21]}  a6 {[%clk 0:01:58]} 19. g3 {[%clk 0:02:13]}  e5 {[%clk 0:01:49]} 20. dxe5 {[%clk 0:02:11]}  Nxe5 {[%clk 0:01:49]} 21. Nxe5 {[%clk 0:02:08]}  Qxe5 {[%clk 0:01:49]} 22. Ra4 {[%clk 0:01:45]}  e3 {[%clk 0:01:30]} 23. f4 {[%clk 0:01:44]}  Qe6 {[%clk 0:01:16]} 24. Bf3 {[%clk 0:01:32]}  Nf6 {[%clk 0:01:06]} 25. Rd4 {[%clk 0:01:21]}  Rxd4 {[%clk 0:01:01]} 26. cxd4 {[%clk 0:01:22]}  O-O {[%clk 0:00:58]} 27. O-O {[%clk 0:01:19]}  Rc8 {[%clk 0:00:54]} 28. d5 {[%clk 0:01:09]}  Qd7 {[%clk 0:00:18]} 29. Qxe3 {[%clk 0:01:06]}  Rc2 {[%clk 0:00:15]} 30. Rf2 {[%clk 0:01:01]}  Rxf2 {[%clk 0:00:12]} 31. Qxf2 {[%clk 0:01:01]}  Qb5 {[%clk 0:00:10]} 32. Qd2 {[%clk 0:01:01]}  Qc5+ {[%clk 0:00:08]} 33. Kg2 {[%clk 0:01:02]}  Ne8 {[%clk 0:00:07]} 34. b4 {[%clk 0:00:55]}  Qc7 {[%clk 0:00:06]} 35. Qf2 {[%clk 0:00:47]}  Nd6 {[%clk 0:00:06]} 36. Qc5 {[%clk 0:00:47]}  Qe7 {[%clk 0:00:07]} 37. h4 {[%clk 0:00:42]}  Kh7 {[%clk 0:00:07]} 38. g4 {[%clk 0:00:31]}  Qf6 {[%clk 0:00:06]} 39. Kg3 {[%clk 0:00:29]}  Qe7 {[%clk 0:00:05]} 40. Qc3 {[%clk 0:00:20]}  Qf6 {[%clk 0:00:03]} 41. Qxf6 {[%clk 0:00:19]}  gxf6 {[%clk 0:00:04]} 42. Kf2 {[%clk 0:00:18]}  f5 {[%clk 0:00:04]} 43. g5 {[%clk 0:00:17]}  Kg7 {[%clk 0:00:03]} 44. Ke3 {[%clk 0:00:18]}  f6 {[%clk 0:00:03]} 45. Kd4 {[%clk 0:00:18]}  fxg5 {[%clk 0:00:04]} 46. hxg5 {[%clk 0:00:18]}  Kf8 {[%clk 0:00:04]} 47. Kc5 {[%clk 0:00:19]}  Ke7 {[%clk 0:00:04]} 48. Kb6 {[%clk 0:00:19]}  Kd7 {[%clk 0:00:05]} 49. Be2 {[%clk 0:00:19]}  Ne4 {[%clk 0:00:03]} 50. b5 {[%clk 0:00:18]}  axb5 {[%clk 0:00:03]} 51. Bxb5+ {[%clk 0:00:18]}  Kd6 {[%clk 0:00:03]} 52. Kxb7 {[%clk 0:00:18]}  Nc3 {[%clk 0:00:04]} 53. Bc6 {[%clk 0:00:18]} 1-0


[Site "https://www.chess.com"]

[Event "Titled Tuesday Blitz May 31 Late 2022"]
[White "Kosteniuk, Alexandra"]
[Black "Jones, Gawain C B"]
[WhiteFideId "4128125"]
[BlackFideId "409561"]
[WhiteElo "2469"]
[BlackElo "2657"]
[Result "0-1"]
[Round "07"]
[TimeControl "180+1"]
[Date "2022.05.31"]
[WhiteClock "0:00:02"]
[BlackClock "0:00:08"]

1. e4 {[%clk 0:03:00]}  c6 {[%clk 0:02:58]} 2. Nc3 {[%clk 0:03:00]}  d5 {[%clk 0:02:58]} 3. Nf3 {[%clk 0:03:01]}  dxe4 {[%clk 0:02:58]} 4. Nxe4 {[%clk 0:03:01]}  Nf6 {[%clk 0:02:58]} 5. Qe2 {[%clk 0:02:59]}  Nxe4 {[%clk 0:02:57]} 6. Qxe4 {[%clk 0:03:00]}  Nd7 {[%clk 0:02:58]} 7. d4 {[%clk 0:02:56]}  Nf6 {[%clk 0:02:58]} 8. Qf4 {[%clk 0:02:54]}  Nd5 {[%clk 0:02:47]} 9. Qd2 {[%clk 0:02:53]}  e6 {[%clk 0:02:45]} 10. Bd3 {[%clk 0:02:49]}  Bd6 {[%clk 0:02:42]} 11. g3 {[%clk 0:02:47]}  b6 {[%clk 0:02:33]} 12. O-O {[%clk 0:02:36]}  Bb7 {[%clk 0:02:33]} 13. c4 {[%clk 0:02:34]}  Nf6 {[%clk 0:02:28]} 14. Qe2 {[%clk 0:02:26]}  O-O {[%clk 0:02:18]} 15. Bg5 {[%clk 0:02:25]}  c5 {[%clk 0:02:17]} 16. Rad1 {[%clk 0:02:14]}  Bxf3 {[%clk 0:02:09]} 17. Qxf3 {[%clk 0:02:14]}  cxd4 {[%clk 0:02:10]} 18. Bb1 {[%clk 0:02:00]}  h6 {[%clk 0:02:04]} 19. Bxf6 {[%clk 0:01:53]}  Qxf6 {[%clk 0:02:05]} 20. Qxf6 {[%clk 0:01:47]}  gxf6 {[%clk 0:02:06]} 21. Rxd4 {[%clk 0:01:48]}  Be5 {[%clk 0:02:06]} 22. Rd2 {[%clk 0:01:48]}  Rfd8 {[%clk 0:02:06]} 23. Rfd1 {[%clk 0:01:48]}  Rxd2 {[%clk 0:02:04]} 24. Rxd2 {[%clk 0:01:49]}  Rc8 {[%clk 0:02:03]} 25. b3 {[%clk 0:01:47]}  b5 {[%clk 0:01:59]} 26. Bd3 {[%clk 0:01:38]}  b4 {[%clk 0:01:54]} 27. Be4 {[%clk 0:01:31]}  f5 {[%clk 0:01:50]} 28. Bf3 {[%clk 0:01:26]}  Rc5 {[%clk 0:01:42]} 29. Bh5 {[%clk 0:01:20]}  Rc7 {[%clk 0:01:28]} 30. f4 {[%clk 0:01:16]}  Bf6 {[%clk 0:01:23]} 31. Kf1 {[%clk 0:01:13]}  Kf8 {[%clk 0:01:23]} 32. Ke2 {[%clk 0:01:12]}  Ke7 {[%clk 0:01:23]} 33. Kd1 {[%clk 0:01:10]}  Rc5 {[%clk 0:01:12]} 34. Kc2 {[%clk 0:01:07]}  Bc3 {[%clk 0:01:10]} 35. Rd3 {[%clk 0:00:59]}  Bg7 {[%clk 0:01:08]} 36. Rd2 {[%clk 0:00:54]}  Ra5 {[%clk 0:01:04]} 37. Kb1 {[%clk 0:00:52]}  Bc3 {[%clk 0:01:00]} 38. Rd3 {[%clk 0:00:52]}  e5 {[%clk 0:01:00]} 39. fxe5 {[%clk 0:00:47]}  Rxe5 {[%clk 0:00:59]} 40. Bf3 {[%clk 0:00:32]}  Re1+ {[%clk 0:00:59]} 41. Rd1 {[%clk 0:00:31]}  Re3 {[%clk 0:00:59]} 42. Bd5 {[%clk 0:00:31]}  Re2 {[%clk 0:00:56]} 43. c5 {[%clk 0:00:27]}  Rxh2 {[%clk 0:00:49]} 44. c6 {[%clk 0:00:27]}  Rb2+ {[%clk 0:00:49]} 45. Kc1 {[%clk 0:00:27]}  Rxa2 {[%clk 0:00:42]} 46. Bc4 {[%clk 0:00:21]}  Ra1+ {[%clk 0:00:36]} 47. Kc2 {[%clk 0:00:21]}  Rxd1 {[%clk 0:00:37]} 48. Kxd1 {[%clk 0:00:22]}  Be5 {[%clk 0:00:37]} 49. Ke2 {[%clk 0:00:18]}  Bxg3 {[%clk 0:00:37]} 50. Kf3 {[%clk 0:00:19]}  Bc7 {[%clk 0:00:37]} 51. Bb5 {[%clk 0:00:15]}  Kd6 {[%clk 0:00:34]} 52. Ke3 {[%clk 0:00:15]}  Kd5 {[%clk 0:00:27]} 53. Bc4+ {[%clk 0:00:13]}  Kxc6 {[%clk 0:00:26]} 54. Bxf7 {[%clk 0:00:14]}  Kd6 {[%clk 0:00:26]} 55. Be8 {[%clk 0:00:13]}  Ke5 {[%clk 0:00:26]} 56. Bd7 {[%clk 0:00:13]}  h5 {[%clk 0:00:25]} 57. Kf3 {[%clk 0:00:12]}  h4 {[%clk 0:00:25]} 58. Kg2 {[%clk 0:00:12]}  Ke4 {[%clk 0:00:20]} 59. Bc6+ {[%clk 0:00:08]}  Ke3 {[%clk 0:00:20]} 60. Kh3 {[%clk 0:00:07]}  Bd8 {[%clk 0:00:18]} 61. Bd5 {[%clk 0:00:05]}  f4 {[%clk 0:00:18]} 62. Kg4 {[%clk 0:00:04]}  Bc7 {[%clk 0:00:12]} 63. Bc6 {[%clk 0:00:03]}  h3 {[%clk 0:00:10]} 64. Kxh3 {[%clk 0:00:02]}  f3 {[%clk 0:00:11]} 65. Bb5 {[%clk 0:00:02]}  a5 {[%clk 0:00:08]} 0-1


[Site "https://www.chess.com"]

[Event "Titled Tuesday Blitz May 31 Late 2022"]
[White "Kozin, Yuri"]
[Black "D`Arruda, Ricardo D."]
[WhiteFideId "4129920"]
[BlackFideId "100692"]
[WhiteElo "2576"]
[BlackElo "2439"]
[Result "0-1"]
[Round "07"]
[TimeControl "180+1"]
[Date "2022.06.01"]
[WhiteClock "0:00:11"]
[BlackClock "0:00:34"]

1. e4 {[%clk 0:03:00]}  c5 {[%clk 0:02:55]} 2. Nf3 {[%clk 0:03:01]}  Nc6 {[%clk 0:02:53]} 3. d4 {[%clk 0:03:02]}  cxd4 {[%clk 0:02:53]} 4. Nxd4 {[%clk 0:03:02]}  e5 {[%clk 0:02:54]} 5. Nb5 {[%clk 0:03:02]}  a6 {[%clk 0:02:54]} 6. N5c3 {[%clk 0:03:03]}  Nf6 {[%clk 0:02:53]} 7. Bg5 {[%clk 0:03:02]}  Be7 {[%clk 0:02:53]} 8. Bxf6 {[%clk 0:03:02]}  Bxf6 {[%clk 0:02:53]} 9. Nd5 {[%clk 0:03:03]}  Bg5 {[%clk 0:02:53]} 10. Nbc3 {[%clk 0:03:03]}  d6 {[%clk 0:02:53]} 11. Bc4 {[%clk 0:03:02]}  Be6 {[%clk 0:02:53]} 12. O-O {[%clk 0:03:02]}  O-O {[%clk 0:02:52]} 13. a3 {[%clk 0:03:00]}  Rc8 {[%clk 0:02:52]} 14. Bb3 {[%clk 0:02:59]}  Nd4 {[%clk 0:02:51]} 15. Ne2 {[%clk 0:02:59]}  Nxb3 {[%clk 0:02:50]} 16. cxb3 {[%clk 0:03:00]}  f5 {[%clk 0:02:44]} 17. exf5 {[%clk 0:02:57]}  Rxf5 {[%clk 0:02:45]} 18. Ng3 {[%clk 0:02:51]}  Rf7 {[%clk 0:02:40]} 19. Ne4 {[%clk 0:02:49]}  Bh6 {[%clk 0:02:38]} 20. Nxd6 {[%clk 0:02:42]}  Rd7 {[%clk 0:02:04]} 21. Nxc8 {[%clk 0:02:35]}  Qxc8 {[%clk 0:02:05]} 22. Nb6 {[%clk 0:02:24]}  Rxd1 {[%clk 0:02:04]} 23. Nxc8 {[%clk 0:02:24]}  Rxf1+ {[%clk 0:02:03]} 24. Rxf1 {[%clk 0:02:17]}  Bxc8 {[%clk 0:02:04]} 25. Rd1 {[%clk 0:02:17]}  Bg5 {[%clk 0:02:02]} 26. Rd5 {[%clk 0:02:12]}  Bf6 {[%clk 0:02:01]} 27. Rc5 {[%clk 0:02:09]}  Bd7 {[%clk 0:01:55]} 28. Rc7 {[%clk 0:02:02]}  Bc6 {[%clk 0:01:54]} 29. b4 {[%clk 0:02:02]}  Kf8 {[%clk 0:01:47]} 30. a4 {[%clk 0:01:58]}  Ke8 {[%clk 0:01:36]} 31. b5 {[%clk 0:01:56]}  axb5 {[%clk 0:01:12]} 32. axb5 {[%clk 0:01:56]}  Kd8 {[%clk 0:01:03]} 33. Rf7 {[%clk 0:01:54]}  Bd5 {[%clk 0:00:58]} 34. Rf8+ {[%clk 0:01:51]}  Kc7 {[%clk 0:00:58]} 35. g4 {[%clk 0:01:26]}  Kb6 {[%clk 0:00:55]} 36. Rh8 {[%clk 0:01:24]}  h6 {[%clk 0:00:55]} 37. f3 {[%clk 0:01:05]}  Kxb5 {[%clk 0:00:54]} 38. Kf2 {[%clk 0:01:05]}  e4 {[%clk 0:00:49]} 39. fxe4 {[%clk 0:01:00]}  Bxe4 {[%clk 0:00:50]} 40. Re8 {[%clk 0:00:59]}  Bc6 {[%clk 0:00:48]} 41. Re2 {[%clk 0:00:53]}  Kb4 {[%clk 0:00:47]} 42. Kg3 {[%clk 0:00:50]}  Kb3 {[%clk 0:00:46]} 43. h4 {[%clk 0:00:48]}  Bxb2 {[%clk 0:00:46]} 44. g5 {[%clk 0:00:48]}  hxg5 {[%clk 0:00:46]} 45. hxg5 {[%clk 0:00:48]}  b5 {[%clk 0:00:45]} 46. Re6 {[%clk 0:00:43]}  Bd5 {[%clk 0:00:45]} 47. Rb6 {[%clk 0:00:37]}  Kc4 {[%clk 0:00:44]} 48. Kf4 {[%clk 0:00:37]}  Bd4 {[%clk 0:00:44]} 49. Rb8 {[%clk 0:00:34]}  b4 {[%clk 0:00:44]} 50. Kf5 {[%clk 0:00:32]}  b3 {[%clk 0:00:44]} 51. Kg6 {[%clk 0:00:32]}  b2 {[%clk 0:00:41]} 52. Kh7 {[%clk 0:00:27]}  Kc3 {[%clk 0:00:38]} 53. g6 {[%clk 0:00:25]}  Bb3 {[%clk 0:00:36]} 54. Rc8+ {[%clk 0:00:20]}  Kd3 {[%clk 0:00:35]} 55. Kh8 {[%clk 0:00:14]}  b1=Q {[%clk 0:00:35]} 56. Rc1 {[%clk 0:00:10]}  Qxc1 {[%clk 0:00:34]} 57. Kh7 {[%clk 0:00:11]}  Qh1# {[%clk 0:00:34]} 0-1


[Site "https://www.chess.com"]

[Event "Titled Tuesday Blitz May 31 Late 2022"]
[White "Kujawski, Adam"]
[Black "Suich, Peter D"]
[WhiteFideId "1100920"]
[BlackFideId "2050366"]
[WhiteElo "1982"]
[BlackElo "2433"]
[Result "0-1"]
[Round "07"]
[TimeControl "180+1"]
[Date "2022.06.01"]
[WhiteClock "0:00:01"]
[BlackClock "0:00:22"]

1. e4 {[%clk 0:03:00]}  c5 {[%clk 0:03:00]} 2. Nf3 {[%clk 0:03:01]}  Nc6 {[%clk 0:03:00]} 3. Nc3 {[%clk 0:03:00]}  e6 {[%clk 0:03:00]} 4. d4 {[%clk 0:02:59]}  cxd4 {[%clk 0:03:01]} 5. Nxd4 {[%clk 0:03:00]}  Nf6 {[%clk 0:03:02]} 6. Ndb5 {[%clk 0:02:59]}  d6 {[%clk 0:03:02]} 7. Bf4 {[%clk 0:02:59]}  e5 {[%clk 0:03:02]} 8. Bg5 {[%clk 0:03:00]}  a6 {[%clk 0:03:03]} 9. Na3 {[%clk 0:03:00]}  Be6 {[%clk 0:03:03]} 10. Nc4 {[%clk 0:02:59]}  Rb8 {[%clk 0:03:04]} 11. Ne3 {[%clk 0:02:57]}  Be7 {[%clk 0:03:04]} 12. Bxf6 {[%clk 0:02:56]}  Bxf6 {[%clk 0:03:05]} 13. Ncd5 {[%clk 0:02:57]}  Bg5 {[%clk 0:03:05]} 14. h4 {[%clk 0:02:43]}  Bxh4 {[%clk 0:03:05]} 15. c3 {[%clk 0:02:38]}  Bg5 {[%clk 0:03:00]} 16. Bd3 {[%clk 0:02:35]}  h6 {[%clk 0:02:58]} 17. g3 {[%clk 0:02:14]}  Ne7 {[%clk 0:02:33]} 18. Qf3 {[%clk 0:01:46]}  Bxe3 {[%clk 0:02:26]} 19. Nxe3 {[%clk 0:01:43]}  d5 {[%clk 0:02:23]} 20. O-O-O {[%clk 0:01:39]}  Qa5 {[%clk 0:02:14]} 21. exd5 {[%clk 0:01:27]}  Nxd5 {[%clk 0:02:05]} 22. Nxd5 {[%clk 0:01:25]}  Bxd5 {[%clk 0:02:01]} 23. Be4 {[%clk 0:01:18]}  Bxe4 {[%clk 0:01:36]} 24. Qxe4 {[%clk 0:01:18]}  O-O {[%clk 0:01:36]} 25. Rd5 {[%clk 0:01:07]}  Qxa2 {[%clk 0:01:33]} 26. Rhd1 {[%clk 0:01:07]}  Qb3 {[%clk 0:01:15]} 27. Rxe5 {[%clk 0:00:53]}  Rbd8 {[%clk 0:01:11]} 28. Rxd8 {[%clk 0:00:30]}  Rxd8 {[%clk 0:01:12]} 29. Re8+ {[%clk 0:00:31]}  Rxe8 {[%clk 0:01:12]} 30. Qxe8+ {[%clk 0:00:32]}  Kh7 {[%clk 0:01:13]} 31. Qe4+ {[%clk 0:00:32]}  g6 {[%clk 0:01:13]} 32. g4 {[%clk 0:00:17]}  Qb5 {[%clk 0:01:04]} 33. f3 {[%clk 0:00:13]}  Qf1+ {[%clk 0:00:58]} 34. Kc2 {[%clk 0:00:13]}  Qf2+ {[%clk 0:00:55]} 35. Kb3 {[%clk 0:00:12]}  Qb6+ {[%clk 0:00:55]} 36. Kc2 {[%clk 0:00:12]}  Qb5 {[%clk 0:00:54]} 37. b4 {[%clk 0:00:11]}  a5 {[%clk 0:00:53]} 38. bxa5 {[%clk 0:00:11]}  Qxa5 {[%clk 0:00:52]} 39. Qxb7 {[%clk 0:00:10]}  Qa2+ {[%clk 0:00:48]} 40. Kd3 {[%clk 0:00:09]}  Qe6 {[%clk 0:00:45]} 41. Qe4 {[%clk 0:00:08]}  Qa6+ {[%clk 0:00:42]} 42. c4 {[%clk 0:00:08]}  Qa3+ {[%clk 0:00:42]} 43. Kd4 {[%clk 0:00:09]}  Qa1+ {[%clk 0:00:42]} 44. Kd5 {[%clk 0:00:09]}  Qa2 {[%clk 0:00:38]} 45. Kd6 {[%clk 0:00:08]}  Qa6+ {[%clk 0:00:36]} 46. Ke7 {[%clk 0:00:08]}  Qa7+ {[%clk 0:00:35]} 47. Ke8 {[%clk 0:00:08]}  Kg8 {[%clk 0:00:33]} 48. Qe5 {[%clk 0:00:06]}  Qa8+ {[%clk 0:00:32]} 49. Ke7 {[%clk 0:00:05]}  Qb7+ {[%clk 0:00:32]} 50. Ke8 {[%clk 0:00:05]}  Qc6+ {[%clk 0:00:32]} 51. Ke7 {[%clk 0:00:04]}  Qxc4 {[%clk 0:00:26]} 52. Qb8+ {[%clk 0:00:04]}  Kh7 {[%clk 0:00:27]} 53. Qf8 {[%clk 0:00:03]}  Qe6+ {[%clk 0:00:27]} 54. Kd8 {[%clk 0:00:03]}  Qf6+ {[%clk 0:00:25]} 55. Ke8 {[%clk 0:00:03]}  Qxf3 {[%clk 0:00:24]} 56. Qb4 {[%clk 0:00:01]}  Qf6 {[%clk 0:00:23]} 57. Kf8 {[%clk 0:00:02]}  Qg7+ {[%clk 0:00:23]} 58. Ke8 {[%clk 0:00:01]}  f6 {[%clk 0:00:22]} 0-1


[Site "https://www.chess.com"]

[Event "Titled Tuesday Blitz May 31 Late 2022"]
[White "Leitao, Rafael"]
[Black "Baches Garcia, Guillermo"]
[WhiteFideId "2101246"]
[BlackFideId "2209764"]
[WhiteElo "2609"]
[BlackElo "2503"]
[Result "0-1"]
[Round "07"]
[TimeControl "180+1"]
[Date "2022.06.01"]
[WhiteClock "0:00:12"]
[BlackClock "0:00:05"]

1. e4 {[%clk 0:02:41]}  c5 {[%clk 0:03:00]} 2. Nf3 {[%clk 0:02:40]}  d6 {[%clk 0:03:00]} 3. d4 {[%clk 0:02:40]}  cxd4 {[%clk 0:03:01]} 4. Nxd4 {[%clk 0:02:40]}  Nf6 {[%clk 0:03:02]} 5. Nc3 {[%clk 0:02:41]}  Nc6 {[%clk 0:03:02]} 6. Bg5 {[%clk 0:02:40]}  e6 {[%clk 0:03:03]} 7. Qd2 {[%clk 0:02:40]}  h6 {[%clk 0:03:03]} 8. Bh4 {[%clk 0:02:30]}  Nxe4 {[%clk 0:03:03]} 9. Qf4 {[%clk 0:02:08]}  Nf6 {[%clk 0:03:02]} 10. O-O-O {[%clk 0:02:03]}  g5 {[%clk 0:02:54]} 11. Qf3 {[%clk 0:01:39]}  gxh4 {[%clk 0:02:36]} 12. Bb5 {[%clk 0:01:38]}  Bd7 {[%clk 0:02:22]} 13. Rhe1 {[%clk 0:01:37]}  Be7 {[%clk 0:01:55]} 14. Kb1 {[%clk 0:01:36]}  Qb6 {[%clk 0:01:40]} 15. Nb3 {[%clk 0:01:10]}  Ne5 {[%clk 0:01:28]} 16. Qe2 {[%clk 0:01:02]}  a6 {[%clk 0:01:17]} 17. Bxd7+ {[%clk 0:01:00]}  Nexd7 {[%clk 0:01:12]} 18. Rd4 {[%clk 0:01:00]}  Nc5 {[%clk 0:00:47]} 19. Nd2 {[%clk 0:00:52]}  Qc7 {[%clk 0:00:31]} 20. a3 {[%clk 0:00:48]}  b5 {[%clk 0:00:29]} 21. Rxh4 {[%clk 0:00:46]}  Rc8 {[%clk 0:00:28]} 22. Rf4 {[%clk 0:00:45]}  Ncd7 {[%clk 0:00:20]} 23. Nb3 {[%clk 0:00:42]}  Ne5 {[%clk 0:00:19]} 24. Nd2 {[%clk 0:00:37]}  Nfd7 {[%clk 0:00:19]} 25. Rd4 {[%clk 0:00:35]}  d5 {[%clk 0:00:18]} 26. f4 {[%clk 0:00:35]}  Nc4 {[%clk 0:00:16]} 27. Nxd5 {[%clk 0:00:35]}  Nxa3+ {[%clk 0:00:16]} 28. bxa3 {[%clk 0:00:27]}  Qxc2+ {[%clk 0:00:15]} 29. Ka1 {[%clk 0:00:28]}  Bxa3 {[%clk 0:00:12]} 30. Rb1 {[%clk 0:00:22]}  Bc5 {[%clk 0:00:08]} 31. Rd3 {[%clk 0:00:18]}  Qa4+ {[%clk 0:00:07]} 32. Kb2 {[%clk 0:00:18]}  Be7 {[%clk 0:00:06]} 33. Nc3 {[%clk 0:00:17]}  Qb4+ {[%clk 0:00:05]} 34. Kc2 {[%clk 0:00:17]}  Qc5 {[%clk 0:00:05]} 35. Ne4 {[%clk 0:00:17]}  Qc7 {[%clk 0:00:04]} 36. Kd1 {[%clk 0:00:16]}  b4 {[%clk 0:00:05]} 37. Nd5 {[%clk 0:00:16]}  exd5 {[%clk 0:00:04]} 38. Rxd5 {[%clk 0:00:16]}  O-O {[%clk 0:00:04]} 39. Qg4+ {[%clk 0:00:14]}  Kh8 {[%clk 0:00:02]} 40. Rd2 {[%clk 0:00:13]}  Rfd8 {[%clk 0:00:02]} 41. Qh5 {[%clk 0:00:13]}  Nf6 {[%clk 0:00:02]} 42. Qxh6+ {[%clk 0:00:13]}  Kg8 {[%clk 0:00:02]} 43. Nxf6+ {[%clk 0:00:13]}  Bxf6 {[%clk 0:00:03]} 44. Qxf6 {[%clk 0:00:12]}  Qc2+ {[%clk 0:00:03]} 45. Ke1 {[%clk 0:00:11]}  Qxd2+ {[%clk 0:00:04]} 46. Kf1 {[%clk 0:00:12]}  Rc1+ {[%clk 0:00:04]} 47. Rxc1 {[%clk 0:00:12]}  Qxc1+ {[%clk 0:00:05]} 48. Kf2 {[%clk 0:00:13]}  Qc2+ {[%clk 0:00:05]} 49. Kf3 {[%clk 0:00:12]}  Qc3+ {[%clk 0:00:05]} 0-1


[Site "https://www.chess.com"]